fUSD/lending_fUSD_20241102
["ID","MTS","AMOUNT","RATE_DAILY","PERIOD"]
[341170171,1730515833687,-1000.0,0.00044659,89]
[341170172,1730515833696,-71000.0,0.0004466,120]
[341170173,1730515833705,-3717.55845236,0.0004466,2]
[341170174,1730515833715,-151.0,0.0004466,14]
[341170175,1730515833724,-281.25107867,0.00044665,9]
[341170176,1730515833733,-255.074525,0.00044665,14]
[341170177,1730515833742,-1000.0,0.00044665,89]
[341170178,1730515833751,-1000.0,0.00044665,89]
[341170179,1730515833760,-1000.0,0.00044665,89]
[341170180,1730515833769,-1000.0,0.00044665,89]
[341170181,1730515833778,-1000.0,0.00044665,89]
[341170182,1730515833787,-1000.0,0.00044665,89]
[341170183,1730515833796,-1000.0,0.00044665,89]
[341170184,1730515833806,-1000.0,0.00044665,89]
[341170185,1730515833817,-1000.0,0.00044665,89]
[341170186,1730515833826,-1000.0,0.00044665,89]
[341170187,1730515833835,-1000.0,0.00044665,89]
[341170188,1730515833844,-1000.0,0.00044665,89]
[341170189,1730515833853,-1000.0,0.00044665,89]
[341170190,1730515833862,-1000.0,0.00044665,89]
[341170191,1730515833871,-1000.0,0.00044665,89]
[341170192,1730515833880,-1000.0,0.00044665,89]
[341170193,1730515833890,-1000.0,0.00044665,89]
[341170194,1730515833899,-1063.01430169,0.00044665,89]
[341170195,1730515833908,-46971.48229927,0.00044665,60]
[341170196,1730515833918,-1110.68015403,0.00044666,120]
[341170197,1730515833927,-500.0,0.00044673,10]
[341170198,1730515833937,-500.0,0.00044673,2]
[341170199,1730515833948,-338.96321678,0.00044673,10]
[341170200,1730515833958,-177.69085135,0.00044673,2]
[341170201,1730515833967,-177.69085135,0.00044673,2]
[341170202,1730515833976,-3077.76508449,0.00044683,2]
[341170203,1730515833985,-678761.67447707,0.00044683,30]
[341170204,1730515834050,-25196.79145984,0.00044683,30]
[341170205,1730515834080,-1473.6574668,0.00044683,30]
[341170206,1730515834094,-3324.45701858,0.00044683,30]
[341170207,1730515834105,-2909.42136035,0.00044683,30]
[341170208,1730515834116,-7211.0,0.00044683,30]
[341170209,1730515834127,-484.32,0.00044683,30]
[341170210,1730515834141,-503.022718,0.00044683,30]
[341170213,1730515837758,-845.302431,0.00044683,30]
[341170214,1730515837919,-319.24299861,0.00044683,30]
[341170215,1730515838079,-907.63096378,0.00044683,30]
[341170216,1730515840151,-1124.00287894,0.00044683,30]
[341170217,1730515840163,-3790.66433046,0.00044683,30]
[341170218,1730515840175,-1617.048433,0.00044683,30]
[341170219,1730515840187,-6636.53551587,0.00044683,30]
[341170221,1730515842879,-8416.999,0.00044683,30]
[341170222,1730515843052,-431.0,0.00044683,30]
[341170230,1730515845822,-7405.91550632,0.00044683,30]
[341170232,1730515846020,-1202.157947,0.00044683,30]
[341170233,1730515846032,-8939.38664897,0.00044683,30]
[341170245,1730516223030,-300.0,0.00019725,2]
[341170247,1730516259051,150.0,0.00015342,2]
[341170248,1730516259072,7.71,0.00015342,2]
[341170249,1730516404175,-500.0,0.0001726,2]
[341170250,1730516404943,-214.06046479,0.0001726,2]
[341170252,1730516768983,250.0,0.00017,2]
[341170253,1730516770674,-300.0,0.00019,2]
[341170277,1730517029032,-151.0,0.0003,120]
[341170278,1730517029063,-996.28395627,0.000301,30]
[341170279,1730517029093,-500.0,0.000301,30]
[341170280,1730517029121,-145.43208746,0.000301,30]
[341170281,1730517029133,-151.0,0.000301,30]
[341170282,1730517029144,-203.56791254,0.000301,30]
[341170283,1730517029154,-500.0,0.000301,30]
[341170284,1730517029163,-292.71604373,0.000301,30]
[341170285,1730517029175,-207.28395627,0.000301,30]
[341170286,1730517029184,-292.71604373,0.000301,30]
[341170287,1730517029196,-207.28395627,0.000301,30]
[341170288,1730517029206,-292.71604373,0.000301,30]
[341170290,1730517031990,-1332.63115809,0.000254,2]
[341170293,1730517032181,-151.36884191,0.000254,2]
[341170294,1730517032192,-561.06818809,0.00025686,2]
[341170308,1730517038103,-2608.47146482,0.00025686,2]
[341170309,1730517038114,-492.1710413,0.00025686,2]
[341170310,1730517038125,-3145.23616059,0.00025686,2]
[341170311,1730517038134,-500.0,0.00025777,2]
[341170312,1730517038144,-500.0,0.00025786,2]
[341170313,1730517038153,-290.317,0.0002595,2]
[341170314,1730517038163,-156.0,0.00030099,2]
[341170315,1730517038172,-207.28395627,0.000301,30]
[341170316,1730517038181,-500.0,0.000301,30]
[341170317,1730517038190,-500.0,0.000301,30]
[341170318,1730517038199,-500.0,0.000301,30]
[341170319,1730517038208,-500.0,0.000301,30]
[341170320,1730517038217,-500.0,0.000301,30]
[341170321,1730517038226,-500.0,0.000301,30]
[341170322,1730517038236,-500.0,0.000301,30]
[341170323,1730517038248,-500.0,0.000301,30]
[341170324,1730517038257,-500.0,0.000301,30]
[341170325,1730517038266,-563.09706362,0.000301,30]
[341170326,1730517038275,-500.0,0.000301,30]
[341170327,1730517038285,-500.0,0.000301,30]
[341170328,1730517038294,-500.0,0.000301,30]
[341170329,1730517038303,-643.72831437,0.000301,30]
[341170330,1730517038313,-508.04368109,0.000301,30]
[341170331,1730517038323,-513.48584858,0.000301,30]
[341170332,1730517038332,-500.0,0.000301,30]
[341170333,1730517038341,-52.45889249,0.000301,30]
[341170334,1730517038352,-447.54110751,0.000301,30]
[341170335,1730517038361,-500.0,0.000301,30]
[341170336,1730517038370,-500.0,0.000301,30]
[341170337,1730517038379,-500.0,0.000301,30]
[341170338,1730517038388,-132.46846197,0.000301,30]
[341170339,1730517038400,-367.53153803,0.000301,30]
[341170340,1730517038411,-171.50763697,0.000301,30]
[341170341,1730517038422,-328.49236303,0.000301,30]
[341170342,1730517038431,-524.08285744,0.000301,30]
[341170343,1730517038441,-500.0,0.000301,30]
[341170344,1730517038450,-500.0,0.000301,30]
[341170345,1730517038459,-500.0,0.000301,30]
[341170346,1730517038468,-500.0,0.000301,30]
[341170347,1730517038478,-970.37202639,0.000301,30]
[341170348,1730517038487,-516.39806797,0.000301,30]
[341170349,1730517038496,-500.0,0.000301,30]
[341170350,1730517038504,-500.0,0.000301,30]
[341170351,1730517038515,-500.0,0.000301,30]
[341170352,1730517038525,-500.0,0.000301,30]
[341170353,1730517038537,-500.0,0.000301,30]
[341170354,1730517038546,-500.0,0.000301,30]
[341170355,1730517038556,-531.73505082,0.000301,30]
[341170356,1730517038565,-500.0,0.0003145,30]
[341170357,1730517038575,-500.0,0.0003145,30]
[341170358,1730517038584,-505.41044404,0.0003145,30]
[341170359,1730517038593,-500.0,0.0003145,30]
[341170360,1730517038603,-500.0,0.0003145,30]
[341170361,1730517038613,-500.0,0.0003145,30]
[341170362,1730517038622,-500.0,0.0003145,30]
[341170363,1730517038631,-500.0,0.0003145,30]
[341170364,1730517038640,-500.0,0.0003145,30]
[341170365,1730517038650,-500.0,0.0003145,30]
[341170367,1730517038661,-500.0,0.0003145,30]
[341170368,1730517038670,-500.0,0.0003145,30]
[341170370,1730517038679,-505.00545228,0.0003145,30]
[341170372,1730517038689,-500.0,0.0003145,30]
[341170374,1730517038698,-500.0,0.0003145,30]
[341170376,1730517038707,-500.0,0.0003145,30]
[341170378,1730517038717,-500.0,0.0003145,30]
[341170380,1730517038726,-500.0,0.0003145,30]
[341170382,1730517038735,-500.0,0.0003145,30]
[341170383,1730517038744,-500.0,0.0003145,30]
[341170385,1730517038754,-500.0,0.0003145,30]
[341170387,1730517038763,-500.0,0.0003145,30]
[341170388,1730517038772,-500.0,0.0003145,30]
[341170389,1730517038781,-500.0,0.0003145,30]
[341170390,1730517038790,-500.0,0.0003145,30]
[341170391,1730517038799,-500.0,0.0003145,30]
[341170392,1730517038808,-500.0,0.0003145,30]
[341170393,1730517038817,-500.0,0.0003145,30]
[341170394,1730517038826,-500.0,0.0003145,30]
[341170395,1730517038834,-500.0,0.0003145,30]
[341170396,1730517038843,-500.0,0.0003145,30]
[341170397,1730517038852,-500.0,0.0003145,30]
[341170398,1730517038861,-500.0,0.0003145,30]
[341170399,1730517038870,-500.0,0.0003145,30]
[341170400,1730517038879,-500.0,0.0003145,30]
[341170401,1730517038889,-500.0,0.0003145,30]
[341170402,1730517038897,-500.0,0.0003145,30]
[341170403,1730517038907,-500.0,0.0003145,30]
[341170404,1730517038916,-500.0,0.0003145,30]
[341170405,1730517038925,-500.0,0.0003145,30]
[341170406,1730517038934,-500.0,0.0003145,30]
[341170407,1730517038943,-500.0,0.0003145,30]
[341170408,1730517038952,-508.69021151,0.0003145,30]
[341170409,1730517038962,-500.0,0.0003145,30]
[341170410,1730517038971,-500.0,0.0003145,30]
[341170411,1730517038980,-500.0,0.0003145,30]
[341170412,1730517038989,-500.0,0.0003145,30]
[341170413,1730517038998,-500.0,0.0003145,30]
[341170414,1730517039007,-500.0,0.0003145,30]
[341170415,1730517039016,-500.0,0.0003145,30]
[341170416,1730517039025,-189.86,0.0003352,2]
[341170417,1730517039034,-170.07810867,0.00035516,2]
[341170418,1730517039043,-157.71,0.00035616,2]
[341170419,1730517039051,-1019.2739,0.00039888,7]
[341170420,1730517039061,-151.0,0.0004,120]
[341170421,1730517039071,-1058.55,0.00040114,2]
[341170422,1730517039080,-1449.8825,0.0004178,2]
[341170423,1730517039089,-500.0,0.00041861,2]
[341170424,1730517039099,-1058.55,0.00042378,2]
[341170425,1730517039109,-151.88,0.00042575,2]
[341170426,1730517039118,-3048.843,0.00042651,2]
[341170427,1730517039130,-202.75567051,0.00042787,31]
[341170428,1730517039141,-20262.78,0.00042788,2]
[341170429,1730517039152,-175.233,0.00042788,2]
[341170430,1730517039162,-1367.55,0.00042798,2]
[341170431,1730517039171,-150.0,0.00042798,7]
[341170432,1730517039182,-174.95,0.0004282,2]
[341170433,1730517039191,-500.0,0.00042829,2]
[341170434,1730517039203,-181.9,0.00042842,2]
[341170435,1730517039214,-250.0,0.00042852,120]
[341170436,1730517039223,-1000.0,0.00042883,2]
[341170437,1730517039238,-150.0,0.00042895,2]
[341170438,1730517039251,-306.19,0.00042898,2]
[341170439,1730517039260,-250.0,0.00042899,2]
[341170440,1730517039269,-565.4,0.00042943,2]
[341170441,1730517039279,-232.16,0.00043069,2]
[341170442,1730517039287,-163.16,0.00043206,2]
[341170443,1730517039297,-165.45,0.0004324,2]
[341170444,1730517039307,-3713.7534,0.00043631,7]
[341170445,1730517039316,-167.924,0.0004366,68]
[341170446,1730517039326,-150.0,0.00043788,120]
[341170447,1730517039337,-30801.0,0.00043807,30]
[341170448,1730517039347,-700.0,0.000439,16]
[341170449,1730517039356,-151.88,0.00043926,2]
[341170450,1730517039365,-500.0,0.0004394,2]
[341170451,1730517039374,-1500.0,0.00044,16]
[341170452,1730517039384,-2300.0,0.000441,16]
[341170453,1730517039393,-552.60753789,0.00044167,10]
[341170454,1730517039402,-3100.0,0.000442,16]
[341170455,1730517039413,-3900.0,0.000443,16]
[341170456,1730517039422,-700.0,0.000444,16]
[341170457,1730517039431,-150.0,0.00044445,2]
[341170458,1730517039440,-150.0,0.00044461,2]
[341170459,1730517039451,-150.0,0.00044483,2]
[341170460,1730517039460,-1183.20265479,0.00044496,14]
[341170461,1730517039471,-700.0,0.000445,16]
[341170462,1730517039481,-213.4583513,0.00044517,2]
[341170463,1730517039491,-150.0,0.00044551,2]
[341170464,1730517039501,-150.0,0.00044583,2]
[341170465,1730517039512,-5474.6652,0.00044583,2]
[341170466,1730517039523,-417.78850633,0.00044588,2]
[341170467,1730517039534,-335.10669475,0.00044595,2]
[341170468,1730517039544,-298.30900512,0.00044595,120]
[341170469,1730517039553,-335.10669472,0.00044595,2]
[341170470,1730517039562,-335.10669472,0.00044595,2]
[341170471,1730517039571,-335.10669472,0.00044596,2]
[341170472,1730517039581,-335.10669472,0.00044596,2]
[341170473,1730517039590,-335.10669472,0.00044596,2]
[341170474,1730517039599,-208.04846093,0.00044596,16]
[341170475,1730517039608,-942.46588668,0.00044596,2]
[341170476,1730517039618,-1238.35532596,0.00044596,2]
[341170477,1730517039627,-4490.85788693,0.00044596,2]
[341170478,1730517039636,-335.10669472,0.00044596,2]
[341170479,1730517039645,-187.4864138,0.00044596,9]
[341170480,1730517039654,-156.30823194,0.00044596,120]
[341170481,1730517039663,-156.30823194,0.00044596,120]
[341170482,1730517039672,-156.30823194,0.00044596,120]
[341170483,1730517039681,-156.3,0.00044596,120]
[341170484,1730517039690,-156.30823194,0.00044596,120]
[341170485,1730517039699,-156.30823194,0.00044596,120]
[341170486,1730517039708,-156.30823194,0.00044596,120]
[341170487,1730517039716,-156.30823194,0.00044596,120]
[341170488,1730517039725,-156.30823194,0.00044596,120]
[341170489,1730517039734,-156.3,0.00044596,120]
[341170490,1730517039743,-294.51092136,0.00044596,120]
[341170491,1730517039752,-294.51092136,0.00044596,120]
[341170492,1730517039761,-294.51092136,0.00044596,120]
[341170493,1730517039770,-294.51092136,0.00044596,120]
[341170494,1730517039778,-294.51092136,0.00044596,120]
[341170495,1730517039787,-294.51092136,0.00044596,120]
[341170497,1730517039796,-294.51092136,0.00044596,120]
[341170498,1730517039805,-294.51092136,0.00044596,120]
[341170499,1730517039814,-294.51092136,0.00044596,120]
[341170500,1730517039822,-294.51092136,0.00044596,120]
[341170501,1730517039831,-294.51092136,0.00044596,120]
[341170502,1730517039840,-294.51092136,0.00044596,120]
[341170503,1730517039849,-294.51092136,0.00044596,120]
[341170504,1730517039858,-294.51092136,0.00044596,120]
[341170505,1730517039867,-294.51092136,0.00044596,120]
[341170506,1730517039875,-294.51092136,0.00044596,120]
[341170507,1730517039884,-294.51092136,0.00044596,120]
[341170508,1730517039893,-294.51092136,0.00044596,120]
[341170509,1730517039902,-294.51092136,0.00044596,120]
[341170510,1730517039913,-294.51,0.00044596,120]
[341170511,1730517039922,-441.76638204,0.00044596,120]
[341170512,1730517039931,-441.76638204,0.00044596,120]
[341170513,1730517039940,-441.76638204,0.00044596,120]
[341170514,1730517039948,-441.76638204,0.00044596,120]
[341170515,1730517039957,-441.76638204,0.00044596,120]
[341170516,1730517039966,-441.76638204,0.00044596,120]
[341170517,1730517039975,-441.76638204,0.00044596,120]
[341170518,1730517039984,-441.76638204,0.00044596,120]
[341170519,1730517039993,-441.76638204,0.00044596,120]
[341170520,1730517040002,-441.76638204,0.00044596,120]
[341170521,1730517040010,-441.76638204,0.00044596,120]
[341170522,1730517040019,-441.76638204,0.00044596,120]
[341170523,1730517040028,-441.76638204,0.00044596,120]
[341170524,1730517040037,-441.76638204,0.00044596,120]
[341170525,1730517040046,-441.76638204,0.00044596,120]
[341170526,1730517040055,-441.76638204,0.00044596,120]
[341170527,1730517040064,-441.76638204,0.00044596,120]
[341170528,1730517040073,-441.76638204,0.00044596,120]
[341170529,1730517040082,-441.76638204,0.00044596,120]
[341170530,1730517040091,-441.76,0.00044596,120]
[341170531,1730517040100,-264.03241311,0.00044596,120]
[341170532,1730517040110,-264.03241311,0.00044596,120]
[341170533,1730517040119,-264.03241311,0.00044596,120]
[341170534,1730517040127,-264.03241311,0.00044596,120]
[341170535,1730517040136,-264.03241311,0.00044596,120]
[341170536,1730517040145,-264.03241311,0.00044596,120]
[341170537,1730517040156,-264.03241311,0.00044596,120]
[341170538,1730517040164,-264.03241311,0.00044596,120]
[341170539,1730517040173,-264.03241311,0.00044596,120]
[341170540,1730517040182,-264.03241311,0.00044596,120]
[341170541,1730517040192,-264.03241311,0.00044596,120]
[341170542,1730517040202,-264.03241311,0.00044596,120]
[341170543,1730517040213,-264.03241311,0.00044596,120]
[341170544,1730517040223,-264.03241311,0.00044596,120]
[341170545,1730517040234,-264.03241311,0.00044596,120]
[341170546,1730517040250,-264.03241311,0.00044596,120]
[341170547,1730517040260,-264.03241311,0.00044596,120]
[341170548,1730517040269,-264.03241311,0.00044596,120]
[341170549,1730517040278,-264.03241311,0.00044596,120]
[341170550,1730517040288,-264.03,0.00044596,120]
[341170551,1730517040297,-396.04861966,0.00044596,120]
[341170552,1730517040306,-396.04861966,0.00044596,120]
[341170553,1730517040316,-396.04861966,0.00044596,120]
[341170554,1730517040325,-396.04861966,0.00044596,120]
[341170555,1730517040334,-396.04861966,0.00044596,120]
[341170556,1730517040343,-396.04861966,0.00044596,120]
[341170557,1730517040353,-396.04861966,0.00044596,120]
[341170558,1730517040362,-396.04861966,0.00044596,120]
[341170559,1730517040371,-396.04861966,0.00044596,120]
[341170560,1730517040380,-396.04861966,0.00044596,120]
[341170561,1730517040389,-396.04861966,0.00044596,120]
[341170562,1730517040398,-396.04861966,0.00044596,120]
[341170563,1730517040409,-396.04861966,0.00044596,120]
[341170564,1730517040418,-396.04861966,0.00044596,120]
[341170566,1730517040428,-396.04861966,0.00044596,120]
[341170567,1730517040437,-396.04861966,0.00044596,120]
[341170568,1730517040447,-396.04861966,0.00044596,120]
[341170569,1730517040457,-396.04861966,0.00044596,120]
[341170570,1730517040466,-396.04861966,0.00044596,120]
[341170571,1730517040475,-396.04,0.00044596,120]
[341170572,1730517040485,-243.47434804,0.000446,120]
[341170573,1730517040495,-700.0,0.000446,16]
[341170574,1730517040504,-5991.61184781,0.000446,5]
[341170575,1730517040514,-952.92,0.000446,2]
[341170576,1730517040524,-712.0,0.00044613,2]
[341170577,1730517040533,-1000.0,0.00044623,2]
[341170578,1730517040544,-1000.0,0.00044623,2]
[341170579,1730517040553,-1000.0,0.00044623,2]
[341170580,1730517040562,-1000.0,0.00044623,2]
[341170581,1730517040571,-1000.0,0.00044623,2]
[341170582,1730517040581,-1000.0,0.00044623,2]
[341170583,1730517040590,-1000.0,0.00044623,2]
[341170584,1730517040599,-1000.0,0.00044623,2]
[341170585,1730517040608,-1000.0,0.00044623,2]
[341170586,1730517040708,-1000.0,0.00044623,2]
[341170587,1730517040718,-1000.0,0.00044623,2]
[341170588,1730517040727,-807.0,0.00044623,2]
[341170589,1730517040736,-1058.55,0.00044641,2]
[341170590,1730517040745,-150.5,0.00044666,30]
[341170591,1730517040754,-712.0,0.00044672,2]
[341170592,1730517040763,-712.0,0.00044673,2]
[341170593,1730517040772,-150.0,0.00044674,2]
[341170594,1730517040782,-150.5,0.00044676,30]
[341170595,1730517040790,-712.0,0.0004468,2]
[341170596,1730517040799,-712.0,0.0004468,2]
[341170597,1730517040809,-286.53318003,0.00044681,14]
[341170598,1730517040818,-16676.45792914,0.00044682,120]
[341170599,1730517040831,-299.51676018,0.00044682,120]
[341170600,1730517040854,-29312.93222877,0.00044682,120]
[341170601,1730517040865,-15236.98212267,0.00044682,120]
[341170602,1730517040875,-173.85890453,0.00044682,2]
[341170603,1730517040884,-631.24019115,0.00044683,9]
[341170604,1730517040893,-500.0,0.00044683,9]
[341170605,1730517040902,-500.0,0.00044683,9]
[341170606,1730517040913,-500.0,0.00044683,9]
[341170607,1730517040922,-500.0,0.00044683,9]
[341170608,1730517040932,-327.81316474,0.00044683,9]
[341170609,1730517040941,-500.0,0.00044683,9]
[341170610,1730517040950,-150.85998171,0.00044683,9]
[341170611,1730517040959,-503.48344882,0.00044683,9]
[341170612,1730517040968,-500.0,0.00044683,9]
[341170613,1730517040978,-500.0,0.00044683,9]
[341170614,1730517040986,-500.0,0.00044683,9]
[341170615,1730517040996,-153.98425392,0.00044683,9]
[341170616,1730517041006,-511.60058671,0.00044683,9]
[341170617,1730517041016,-500.0,0.00044683,9]
[341170618,1730517041026,-500.0,0.00044683,9]
[341170619,1730517041037,-500.0,0.00044683,9]
[341170620,1730517041046,-500.0,0.00044683,9]
[341170621,1730517041057,-216.52815028,0.00044683,9]
[341170622,1730517041067,-500.0,0.00044683,9]
[341170623,1730517041077,-616.6835198,0.00044683,9]
[341170624,1730517041096,-522.67847319,0.00044683,9]
[341170625,1730517041108,-500.0,0.00044683,9]
[341170626,1730517041119,-500.0,0.00044683,9]
[341170627,1730517041130,-500.0,0.00044683,9]
[341170628,1730517041142,-500.0,0.00044683,9]
[341170629,1730517041154,-515.14457175,0.00044683,9]
[341170630,1730517041171,-500.0,0.00044683,9]
[341170631,1730517041181,-500.0,0.00044683,9]
[341170632,1730517041190,-582.47497877,0.00044683,9]
[341170633,1730517041200,-500.0,0.00044683,9]
[341170634,1730517041209,-500.0,0.00044683,9]
[341170635,1730517041219,-558.27117842,0.00044683,9]
[341170636,1730517041229,-500.0,0.00044683,9]
[341170637,1730517041241,-500.0,0.00044683,9]
[341170638,1730517041251,-500.0,0.00044683,9]
[341170639,1730517041260,-500.0,0.00044683,9]
[341170640,1730517041270,-500.0,0.00044683,9]
[341170641,1730517041279,-500.0,0.00044683,9]
[341170642,1730517041289,-621.73667831,0.00044683,9]
[341170643,1730517041301,-500.0,0.00044683,9]
[341170644,1730517041312,-500.0,0.00044683,9]
[341170645,1730517041323,-500.0,0.00044683,9]
[341170646,1730517041334,-293.73366808,0.00044683,9]
[341170647,1730517041344,-500.0,0.00044683,9]
[341170648,1730517041354,-500.0,0.00044683,9]
[341170649,1730517041364,-500.0,0.00044683,9]
[341170650,1730517041374,-500.0,0.00044683,9]
[341170651,1730517041383,-500.0,0.00044683,9]
[341170652,1730517041394,-373.08680571,0.00044683,9]
[341170653,1730517041405,-500.0,0.00044683,9]
[341170654,1730517041415,-500.0,0.00044683,9]
[341170655,1730517041425,-500.0,0.00044683,9]
[341170656,1730517041434,-500.0,0.00044683,9]
[341170657,1730517041444,-500.0,0.00044683,9]
[341170658,1730517041455,-532.0520044,0.00044683,9]
[341170659,1730517041465,-561.09411137,0.00044683,9]
[341170660,1730517041474,-500.0,0.00044683,9]
[341170661,1730517041485,-500.0,0.00044683,9]
[341170662,1730517041495,-500.0,0.00044683,9]
[341170663,1730517041505,-500.0,0.00044683,9]
[341170664,1730517041514,-554.34341681,0.00044683,9]
[341170665,1730517041524,-500.0,0.00044683,9]
[341170666,1730517041534,-500.0,0.00044683,9]
[341170667,1730517041544,-500.0,0.00044683,9]
[341170668,1730517041553,-500.0,0.00044683,9]
[341170669,1730517041563,-500.0,0.00044683,9]
[341170670,1730517041572,-324.68357846,0.00044683,9]
[341170671,1730517041583,-521.64625719,0.00044683,9]
[341170672,1730517041593,-500.0,0.00044683,9]
[341170673,1730517041603,-331.85871483,0.00044683,9]
[341170674,1730517041613,-500.0,0.00044683,9]
[341170675,1730517041623,-500.0,0.00044683,9]
[341170676,1730517041633,-500.0,0.00044683,9]
[341170677,1730517041644,-500.0,0.00044683,9]
[341170678,1730517041655,-500.0,0.00044683,9]
[341170679,1730517041666,-537.14203084,0.00044683,9]
[341170680,1730517041676,-530.16224054,0.00044683,9]
[341170681,1730517041685,-500.0,0.00044683,9]
[341170682,1730517041695,-500.0,0.00044683,9]
[341170683,1730517041705,-500.0,0.00044683,9]
[341170684,1730517041717,-646.04069371,0.00044683,9]
[341170685,1730517041726,-288.35333565,0.00044683,9]
[341170686,1730517041737,-525.31266658,0.00044683,9]
[341170687,1730517041748,-500.0,0.00044683,9]
[341170688,1730517041759,-500.0,0.00044683,9]
[341170689,1730517041769,-246.01620112,0.00044683,9]
[341170690,1730517041779,-500.0,0.00044683,9]
[341170691,1730517041789,-500.0,0.00044683,9]
[341170692,1730517041799,-500.0,0.00044683,9]
[341170693,1730517041809,-500.0,0.00044683,9]
[341170694,1730517041819,-500.0,0.00044683,9]
[341170695,1730517041829,-500.0,0.00044683,9]
[341170696,1730517041839,-500.0,0.00044683,9]
[341170697,1730517041850,-500.0,0.00044683,9]
[341170698,1730517041862,-633.75843874,0.00044683,9]
[341170699,1730517041872,-516.67437861,0.00044683,9]
[341170700,1730517041883,-500.0,0.00044683,9]
[341170701,1730517041894,-500.0,0.00044683,9]
[341170702,1730517041905,-500.0,0.00044683,9]
[341170703,1730517041916,-500.0,0.00044683,9]
[341170704,1730517041925,-500.0,0.00044683,9]
[341170705,1730517041936,-500.0,0.00044683,9]
[341170706,1730517041948,-500.0,0.00044683,9]
[341170707,1730517041958,-556.53600914,0.00044683,9]
[341170708,1730517041969,-500.0,0.00044683,9]
[341170709,1730517041978,-500.0,0.00044683,9]
[341170710,1730517041987,-500.0,0.00044683,9]
[341170711,1730517041997,-538.81076518,0.00044683,9]
[341170712,1730517042006,-500.0,0.00044683,9]
[341170713,1730517042015,-500.0,0.00044683,9]
[341170714,1730517042030,-500.0,0.00044683,9]
[341170715,1730517042042,-509.93224915,0.00044683,9]
[341170716,1730517042055,-500.0,0.00044683,9]
[341170717,1730517042069,-500.0,0.00044683,9]
[341170718,1730517042081,-500.0,0.00044683,9]
[341170719,1730517042093,-500.0,0.00044683,9]
[341170720,1730517042104,-500.0,0.00044683,9]
[341170721,1730517042115,-585.16982783,0.00044683,9]
[341170722,1730517042125,-500.0,0.00044683,9]
[341170723,1730517042135,-500.0,0.00044683,9]
[341170724,1730517042147,-500.0,0.00044683,9]
[341170725,1730517042159,-625.37424404,0.00044683,9]
[341170726,1730517042170,-500.0,0.00044683,2]
[341170727,1730517042181,-500.0,0.00044683,9]
[341170728,1730517042192,-500.0,0.00044683,9]
[341170729,1730517042203,-500.0,0.00044683,9]
[341170730,1730517042215,-500.0,0.00044683,9]
[341170731,1730517042226,-500.0,0.00044683,9]
[341170732,1730517042239,-500.0,0.00044683,9]
[341170733,1730517042252,-500.0,0.00044683,9]
[341170734,1730517042263,-500.0,0.00044683,9]
[341170735,1730517042274,-500.0,0.00044683,9]
[341170736,1730517042287,-500.0,0.00044683,9]
[341170737,1730517042298,-500.0,0.00044683,9]
[341170738,1730517042310,-500.0,0.00044683,9]
[341170739,1730517042322,-500.0,0.00044683,9]
[341170740,1730517042333,-500.0,0.00044683,9]
[341170741,1730517042343,-500.0,0.00044683,9]
[341170742,1730517042353,-500.0,0.00044683,9]
[341170743,1730517042364,-285.34962293,0.00044683,9]
[341170744,1730517042375,-500.0,0.00044683,9]
[341170745,1730517042386,-500.0,0.00044683,9]